fUST/lending_fUST_20250901
["ID","MTS","AMOUNT","RATE_DAILY","PERIOD"]
[382733573,1756723846500,-480.0,0.00013972,2]
[382733575,1756723846510,-480.0,0.00013972,2]
[382733577,1756723846519,-480.0,0.00013972,2]
[382733579,1756723846528,-480.0,0.00013972,2]
[382733581,1756723846537,-480.0,0.00013972,2]
[382733583,1756723846546,-480.0,0.00013972,2]
[382733585,1756723846555,-559.85,0.00013972,2]
[382733587,1756723846565,-978.42,0.00013972,2]
[382733589,1756723846574,-502.39,0.00013972,2]
[382733591,1756723846583,-888.81,0.00013972,2]
[382733593,1756723846592,-480.0,0.00013972,2]
[382733595,1756723846601,-480.0,0.00013972,2]
[382733597,1756723846610,-480.0,0.00013972,2]
[382733599,1756723846619,-480.0,0.00013972,2]
[382733601,1756723846629,-480.0,0.00013972,2]
[382733603,1756723846639,-480.0,0.00013972,2]
[382733605,1756723846647,-480.0,0.00013972,2]
[382733607,1756723846656,-480.0,0.00013972,2]
[382733609,1756723846666,-480.0,0.00013972,2]
[382733611,1756723846675,-711.98,0.00013972,2]
[382733613,1756723846684,-480.0,0.00013972,2]
[382733615,1756723846693,-482.21072514,0.00013972,2]
[382733617,1756723846702,-480.0,0.00013972,2]
[382733619,1756723846711,-760.28,0.00013972,2]
[382733621,1756723846720,-480.0,0.00013972,2]
[382733622,1756723846729,-480.0,0.00013972,2]
[382733624,1756723846739,-480.0,0.00013972,2]
[382733626,1756723846748,-480.0,0.00013972,2]
[382733628,1756723846758,-848.72,0.00013972,2]
[382733630,1756723846767,-480.0,0.00013972,2]
[382733632,1756723846776,-480.0,0.00013972,2]
[382733634,1756723846785,-482.94364366,0.00013972,2]
[382733636,1756723846794,-480.0,0.00013972,2]
[382733638,1756723846803,-480.0,0.00013972,2]
[382733640,1756723846812,-480.0,0.00013972,2]
[382733642,1756723846823,-518.00322405,0.00013972,2]
[382733644,1756723846832,-712.47,0.00013972,2]
[382733646,1756723846841,-480.0,0.00013972,2]
[382733648,1756723846850,-669.24,0.00013972,2]
[382733650,1756723846859,-712.35,0.00013972,2]
[382733652,1756723846869,-821.88,0.00013972,2]
[382733654,1756723846878,-533.76110276,0.00013972,2]
[382733656,1756723846887,-480.0,0.00013972,2]
[382733658,1756723846896,-480.0,0.00013972,2]
[382733660,1756723846905,-480.0,0.00013972,2]
[382733662,1756723846914,-480.0,0.00013972,2]
[382733663,1756723846924,-480.0,0.00013972,2]
[382733665,1756723846933,-480.0,0.00013972,2]
[382733667,1756723846942,-480.0,0.00013972,2]
[382733669,1756723846951,-480.0,0.00013972,2]
[382733671,1756723846960,-151.0,0.00013972,2]
[382733673,1756723846969,-185.501479,0.00013972,2]
[382733675,1756723846979,-688.11,0.00013972,2]
[382733677,1756723846988,-670.16,0.00013972,2]
[382733679,1756723846997,-251.9817288,0.00013972,2]
[382733681,1756723847007,-602.48,0.00013972,2]
[382733683,1756723847015,-480.0,0.00013972,2]
[382733685,1756723847025,-480.0,0.00013972,2]
[382733687,1756723847034,-450.05712781,0.00013972,2]
[382733689,1756723847046,-950.84,0.00013972,2]
[382733691,1756723847056,-283.91907875,0.00013972,2]
[382733693,1756723847065,-480.0,0.00013972,2]
[382733695,1756723847074,-482.14397125,0.00013972,2]
[382733697,1756723847085,-480.0,0.00013972,2]
[382733699,1756723847094,-480.0,0.00013972,2]
[382733701,1756723847103,-480.0,0.00013972,2]
[382733703,1756723847116,-480.0,0.00013972,2]
[382733705,1756723847126,-480.0,0.00013972,2]
[382733707,1756723847136,-480.0,0.00013972,2]
[382733709,1756723847146,-480.0,0.00013972,2]
[382733711,1756723847155,-480.0,0.00013972,2]
[382733713,1756723847164,-480.0,0.00013972,2]
[382733715,1756723847174,-480.0,0.00013972,2]
[382733717,1756723847185,-480.0,0.00013972,2]
[382733719,1756723847195,-480.0,0.00013972,2]
[382733721,1756723847204,-480.0,0.00013972,2]
[382733723,1756723847214,-480.0,0.00013972,2]
[382733725,1756723847224,-480.0,0.00013972,2]
[382733727,1756723847234,-480.0,0.00013972,2]
[382733729,1756723847244,-480.0,0.00013972,2]
[382733731,1756723847253,-480.0,0.00013972,2]
[382733733,1756723847263,-151.0,0.00013972,2]
[382733736,1756723847274,-480.0,0.00013972,2]
[382733738,1756723847284,-486.86272866,0.00013972,2]
[382733740,1756723847294,-480.0,0.00013972,2]
[382733742,1756723847304,-484.68311449,0.00013972,2]
[382733744,1756723847313,-483.26205905,0.00013972,2]
[382733746,1756723847323,-480.0,0.00013972,2]
[382733748,1756723847333,-480.0,0.00013972,2]
[382733750,1756723847343,-480.0,0.00013972,2]
[382733752,1756723847353,-480.0,0.00013972,2]
[382733754,1756723847364,-480.0,0.00013972,2]
[382733756,1756723847375,-480.0,0.00013972,2]
[382733758,1756723847385,-480.0,0.00013972,2]
[382733760,1756723847395,-480.0,0.00013972,2]
[382733762,1756723847405,-189.756392,0.00013972,2]
[382733764,1756723847414,-480.0,0.00013972,2]
[382733766,1756723847424,-480.0,0.00013972,2]
[382733768,1756723847434,-708.94,0.00013972,2]
[382733770,1756723847444,-615.13860858,0.00013972,2]
[382733772,1756723847454,-1175.5,0.00013972,2]
[382733774,1756723847463,-790.67,0.00013972,2]
[382733776,1756723847473,-522.25023421,0.00013972,2]
[382733778,1756723847483,-480.0,0.00013972,2]
[382733781,1756723847494,-480.0,0.00013972,2]
[382733783,1756723847505,-480.0,0.00013972,2]
[382733785,1756723847515,-738.68,0.00013972,2]
[382733787,1756723847525,-480.0,0.00013972,2]
[382733789,1756723847535,-480.0,0.00013972,2]
[382733791,1756723847546,-569.86,0.00013972,2]
[382733793,1756723847555,-697.71,0.00013972,2]
[382733795,1756723847566,-930.18,0.00013972,2]
[382733797,1756723847578,-480.0,0.00013972,2]
[382733799,1756723847588,-480.0,0.00013972,2]
[382733801,1756723847597,-480.0,0.00013972,2]
[382733803,1756723847607,-744.96,0.00013972,2]
[382733806,1756723847617,-480.0,0.00013972,2]
[382733808,1756723847628,-480.0,0.00013972,2]
[382733810,1756723847638,-704.98,0.00013972,2]
[382733812,1756723847648,-533.28,0.00013972,2]
[382733814,1756723847660,-480.0,0.00013972,2]
[382733816,1756723847669,-480.0,0.00013972,2]
[382733818,1756723847679,-480.0,0.00013972,2]
[382733820,1756723847689,-1029.9,0.00013972,2]
[382733822,1756723847699,-734.56,0.00013972,2]
[382733824,1756723847709,-480.0,0.00013972,2]
[382733826,1756723847721,-480.0,0.00013972,2]
[382733828,1756723847731,-480.0,0.00013972,2]
[382733830,1756723847741,-536.47,0.00013972,2]
[382733833,1756723847752,-461.84390019,0.00013972,2]
[382733835,1756723847763,-830.95,0.00013972,2]
[382733837,1756723847772,-595.96283006,0.00013972,2]
[382733839,1756723847783,-629.3,0.00013972,2]
[382733841,1756723847793,-480.0,0.00013972,2]
[382733843,1756723847802,-942.68,0.00013972,2]
[382733845,1756723847812,-1196.88,0.00013972,2]
[382733847,1756723847822,-231.59225965,0.00013972,2]
[382733849,1756723847831,-873.73,0.00013972,2]
[382733851,1756723847842,-596.3,0.00013972,2]
[382733853,1756723847852,-480.0,0.00013972,2]
[382733855,1756723847863,-480.0,0.00013972,2]
[382733858,1756723847874,-480.0,0.00013972,2]
[382733860,1756723847885,-480.0,0.00013972,2]
[382733862,1756723847895,-480.0,0.00013972,2]
[382733864,1756723847905,-480.0,0.00013972,2]
[382733866,1756723847916,-480.0,0.00013972,2]
[382733868,1756723847925,-480.0,0.00013972,2]
[382733870,1756723847936,-480.0,0.00013972,2]
[382733872,1756723847947,-346.94896235,0.00013972,2]
[382733874,1756723847957,-480.0,0.00013972,2]
[382733876,1756723847967,-480.0,0.00013972,2]
[382733878,1756723847977,-480.0,0.00013972,2]
[382733880,1756723847987,-480.0,0.00013972,2]
[382733883,1756723847997,-480.0,0.00013972,2]
[382733885,1756723848007,-480.0,0.00013972,2]
[382733887,1756723848017,-480.0,0.00013972,2]
[382733889,1756723848027,-480.0,0.00013972,2]
[382733891,1756723848039,-480.0,0.00013972,2]
[382733893,1756723848050,-480.0,0.00013972,2]
[382733895,1756723848061,-480.0,0.00013972,2]
[382733897,1756723848071,-480.0,0.00013972,2]
[382733899,1756723848083,-551.81,0.00013972,2]
[382733901,1756723848093,-480.0,0.00013972,2]
[382733903,1756723848103,-480.0,0.00013972,2]
[382733905,1756723848115,-480.0,0.00013972,2]
[382733907,1756723848126,-480.0,0.00013972,2]
[382733910,1756723848137,-480.0,0.00013972,2]
[382733912,1756723848147,-480.0,0.00013972,2]
[382733914,1756723848157,-480.0,0.00013972,2]
[382733916,1756723848169,-480.0,0.00013972,2]
[382733918,1756723848179,-480.0,0.00013972,2]
[382733920,1756723848190,-480.0,0.00013972,2]
[382733922,1756723848202,-480.0,0.00013972,2]
[382733924,1756723848213,-480.0,0.00013972,2]
[382733926,1756723848227,-480.0,0.00013972,2]
[382733929,1756723848241,-480.0,0.00013972,2]
[382733931,1756723848256,-480.0,0.00013972,2]
[382733934,1756723848269,-596.19,0.00013972,2]
[382733936,1756723848283,-480.0,0.00013972,2]
[382733938,1756723848294,-1344.7,0.00013972,2]
[382733941,1756723848307,-480.0,0.00013972,2]
[382733943,1756723848320,-480.0,0.00013972,2]
[382733945,1756723848331,-480.0,0.00013972,2]
[382733947,1756723848344,-480.0,0.00013972,2]
[382733950,1756723848357,-480.0,0.00013972,2]
[382733952,1756723848372,-480.0,0.00013972,2]
[382733954,1756723848384,-480.0,0.00013972,2]
[382733957,1756723848397,-480.0,0.00013972,2]
[382733959,1756723848412,-835.1,0.00013972,2]
[382733961,1756723848424,-635.41,0.00013972,2]
[382733964,1756723848440,-480.0,0.00013972,2]
[382733966,1756723848452,-480.0,0.00013972,2]
[382733968,1756723848465,-637.59,0.00013972,2]
[382733971,1756723848476,-480.0,0.00013972,2]
[382733973,1756723848488,-480.0,0.00013972,2]
[382733976,1756723848502,-480.0,0.00013972,2]
[382733978,1756723848514,-480.0,0.00013972,2]
[382733980,1756723848526,-481.68766409,0.00013972,2]
[382733982,1756723848537,-480.0,0.00013972,2]
[382733984,1756723848549,-480.0,0.00013972,2]
[382733987,1756723848560,-480.0,0.00013972,2]
[382733989,1756723848571,-480.0,0.00013972,2]
[382733991,1756723848584,-685.46,0.00013972,2]
[382733994,1756723848596,-1159.39,0.00013972,2]
[382733996,1756723848611,-480.0,0.00013972,2]
[382733998,1756723848623,-480.0,0.00013972,2]
[382734001,1756723848636,-480.0,0.00013972,2]
[382734003,1756723848650,-480.0,0.00013972,2]
[382734005,1756723848663,-480.0,0.00013972,2]
[382734007,1756723848676,-480.0,0.00013972,2]
[382734009,1756723848689,-1717.94,0.00013972,2]
[382734012,1756723848701,-830.62,0.00013972,2]
[382734014,1756723848711,-480.0,0.00013972,2]
[382734016,1756723848722,-480.0,0.00013972,2]
[382734018,1756723848733,-480.0,0.00013972,2]
[382734021,1756723848748,-659.88,0.00013972,2]
[382734023,1756723848760,-480.0,0.00013972,2]
[382734026,1756723848774,-480.0,0.00013972,2]
[382734028,1756723848784,-480.0,0.00013972,2]
[382734030,1756723848795,-934.45,0.00013972,2]
[382734032,1756723848805,-2004.87,0.00013972,2]
[382734034,1756723848818,-480.0,0.00013972,2]
[382734036,1756723848830,-480.0,0.00013972,2]
[382734039,1756723848841,-480.0,0.00013972,2]
[382734041,1756723848851,-151.0,0.00013972,2]
[382734043,1756723848862,-151.0,0.00013972,2]
[382734045,1756723848874,-483.39713193,0.00013972,2]
[382734047,1756723848885,-480.0,0.00013972,2]
[382734049,1756723848896,-480.0,0.00013972,2]
[382734052,1756723848908,-494.09355426,0.00013972,2]
[382734054,1756723848919,-480.0,0.00013972,2]
[382734056,1756723848930,-480.0,0.00013972,2]
[382734058,1756723848941,-676.45,0.00013972,2]
[382734060,1756723848953,-489.86967818,0.00013972,2]
[382734063,1756723848964,-480.0,0.00013972,2]
[382734065,1756723848976,-576.92,0.00013972,2]
[382734067,1756723848990,-961.39,0.00013972,2]
[382734069,1756723849002,-488.31758207,0.00013972,2]
[382734072,1756723849014,-480.0,0.00013972,2]
[382734074,1756723849026,-4973.39,0.00013972,2]
[382734076,1756723849038,-808.41,0.00013972,2]
[382734078,1756723849059,-480.0,0.00013972,2]
[382734080,1756723849073,-480.0,0.00013972,2]
[382734083,1756723849084,-480.0,0.00013972,2]
[382734085,1756723849095,-515.43,0.00013972,2]
[382734087,1756723849107,-480.0,0.00013972,2]
[382734089,1756723849128,-480.0,0.00013972,2]
[382734091,1756723849140,-480.0,0.00013972,2]
[382734093,1756723849152,-480.0,0.00013972,2]
[382734095,1756723849162,-480.0,0.00013972,2]
[382734097,1756723849173,-480.0,0.00013972,2]
[382734099,1756723849183,-548.95,0.00013972,2]
[382734102,1756723849195,-480.0,0.00013972,2]
[382734104,1756723849206,-539.5,0.00013972,2]
[382734106,1756723849216,-4803.09,0.00013972,2]
[382734108,1756723849228,-530.04,0.00013972,2]
[382734110,1756723849239,-480.0,0.00013972,2]
[382734112,1756723849250,-480.0,0.00013972,2]
[382734115,1756723849261,-1992.65,0.00013972,2]
[382734117,1756723849271,-480.0,0.00013972,2]
[382734119,1756723849281,-480.0,0.00013972,2]
[382734121,1756723849292,-480.0,0.00013972,2]
[382734123,1756723849302,-480.0,0.00013972,2]
[382734125,1756723849313,-480.0,0.00013972,2]
[382734128,1756723849324,-1769.45,0.00013972,2]
[382734130,1756723849335,-480.0,0.00013972,2]
[382734132,1756723849346,-1614.21,0.00013972,2]
[382734134,1756723849359,-480.0,0.00013972,2]
[382734136,1756723849370,-480.0,0.00013972,2]
[382734139,1756723849380,-480.0,0.00013972,2]
[382734141,1756723849391,-480.0,0.00013972,2]
[382734143,1756723849402,-609.73,0.00013972,2]
[382734145,1756723849412,-480.0,0.00013972,2]
[382734148,1756723849424,-480.0,0.00013972,2]
[382734150,1756723849435,-480.0,0.00013972,2]
[382734152,1756723849447,-480.0,0.00013972,2]
[382734154,1756723849459,-480.0,0.00013972,2]
[382734156,1756723849473,-567.26,0.00013972,2]
[382734158,1756723849493,-480.0,0.00013972,2]
[382734160,1756723849505,-507.74,0.00013972,2]
[382734162,1756723849516,-480.0,0.00013972,2]
[382734165,1756723849527,-628.27,0.00013972,2]
[382734167,1756723849539,-480.0,0.00013972,2]
[382734169,1756723849550,-480.0,0.00013972,2]
[382734171,1756723849561,-506.26754925,0.00013972,2]
[382734173,1756723849572,-480.0,0.00013972,2]
[382734175,1756723849583,-480.0,0.00013972,2]
[382734178,1756723849594,-530.82,0.00013972,2]
[382734180,1756723849606,-480.0,0.00013972,2]
[382734182,1756723849618,-480.0,0.00013972,2]
[382734184,1756723849629,-480.0,0.00013972,2]
[382734186,1756723849639,-480.0,0.00013972,2]
[382734189,1756723849650,-4977.91,0.00013972,2]
[382734191,1756723849661,-480.0,0.00013972,2]
[382734193,1756723849672,-581.07,0.00013972,2]
[382734195,1756723849684,-480.0,0.00013972,2]
[382734197,1756723849696,-480.0,0.00013972,2]
[382734199,1756723849707,-675.96,0.00013972,2]
[382734201,1756723849718,-480.0,0.00013972,2]
[382734204,1756723849728,-480.0,0.00013972,2]
[382734206,1756723849739,-480.0,0.00013972,2]
[382734208,1756723849750,-1301.36,0.00013972,2]
[382734210,1756723849761,-480.0,0.00013972,2]
[382734212,1756723849772,-480.0,0.00013972,2]
[382734214,1756723849783,-480.0,0.00013972,2]
[382734217,1756723849793,-480.0,0.00013972,2]
[382734219,1756723849804,-907.14,0.00013972,2]
[382734221,1756723849814,-480.0,0.00013972,2]
[382734223,1756723849825,-480.0,0.00013972,2]
[382734225,1756723849836,-481.4460075,0.00013972,2]
[382734227,1756723849847,-480.0,0.00013972,2]
[382734230,1756723849858,-480.0,0.00013972,2]
[382734232,1756723849870,-796.25,0.00013972,2]
[382734234,1756723849880,-480.0,0.00013972,2]
[382734236,1756723849891,-480.0,0.00013972,2]
[382734238,1756723849901,-472.51940407,0.00013972,2]
[382734241,1756723849912,-480.0,0.00013972,2]
[382734243,1756723849922,-486.66,0.00013972,2]
[382734245,1756723849933,-480.0,0.00013972,2]
[382734247,1756723849944,-1004.78,0.00013972,2]
[382734249,1756723849954,-480.0,0.00013972,2]
[382734251,1756723849965,-540.74,0.00013972,2]
[382734254,1756723849976,-649.74,0.00013972,2]
[382734256,1756723849986,-480.0,0.00013972,2]
[382734258,1756723849997,-480.0,0.00013972,2]
[382734260,1756723850007,-480.0,0.00013972,2]
[382734262,1756723850018,-480.0,0.00013972,2]
[382734264,1756723850028,-480.0,0.00013972,2]
[382734267,1756723850040,-480.0,0.00013972,2]
[382734269,1756723850051,-637.67,0.00013972,2]
[382734271,1756723850062,-1503.52,0.00013972,2]
[382734273,1756723850073,-481.49182011,0.00013972,2]
[382734275,1756723850085,-461.77904097,0.00013972,2]
[382734277,1756723850096,-480.0,0.00013972,2]
[382734279,1756723850106,-480.0,0.00013972,2]
[382734281,1756723850119,-480.0,0.00013972,2]
[382734284,1756723850130,-480.0,0.00013972,2]
[382734286,1756723850141,-480.0,0.00013972,2]
[382734288,1756723850151,-1478.78,0.00013972,2]
[382734290,1756723850162,-480.0,0.00013972,2]
[382734292,1756723850173,-2566.37,0.00013972,2]
[382734295,1756723850183,-480.0,0.00013972,2]
[382734297,1756723850194,-900.37,0.00013972,2]
[382734299,1756723850205,-480.0,0.00013972,2]
[382734301,1756723850215,-557.56,0.00013972,2]
[382734303,1756723850226,-480.0,0.00013972,2]
[382734305,1756723850237,-656.27,0.00013972,2]
[382734307,1756723850247,-480.0,0.00013972,2]
[382734310,1756723850258,-562.77,0.00013972,2]
[382734312,1756723850269,-480.0,0.00013972,2]
[382734314,1756723850279,-480.0,0.00013972,2]
[382734316,1756723850290,-480.0,0.00013972,2]
[382734318,1756723850301,-480.0,0.00013972,2]
[382734340,1756723850537,-1948.89,0.00013972,2]
[382734343,1756723850563,-480.0,0.00013972,2]
[382734346,1756723850576,-438.11055703,0.00013972,2]
[382734347,1756723850586,-539.36,0.00013972,2]
[382734349,1756723850595,-480.0,0.00013972,2]
[382734351,1756723850605,-686.48,0.00013972,2]
[382734353,1756723850619,-755.06,0.00013972,2]
[382734354,1756723850628,-1004.41169497,0.00013972,2]
[382734356,1756723850638,-480.0,0.00013972,2]
[382734358,1756723850646,-480.0,0.00013972,2]
[382734359,1756723850655,-480.0,0.00013972,2]
[382734361,1756723850665,-549.83,0.00013972,2]
[382734363,1756723850674,-480.0,0.00013972,2]
[382734364,1756723850683,-480.0,0.00013972,2]
[382734366,1756723850693,-480.0,0.00013972,2]
[382734368,1756723850702,-480.0,0.00013972,2]
[382734369,1756723850711,-480.0,0.00013972,2]
[382734371,1756723850721,-480.0,0.00013972,2]
[382734373,1756723850730,-481.41361757,0.00013972,2]
[382734375,1756723850739,-482.30376197,0.00013972,2]
[382734377,1756723850749,-480.0,0.00013972,2]
[382734378,1756723850758,-798.42,0.00013972,2]
[382734380,1756723850767,-480.0,0.00013972,2]
[382734382,1756723850777,-726.87,0.00013972,2]
[382734383,1756723850786,-850.46,0.00013972,2]
[382734385,1756723850798,-480.0,0.00013972,2]
[382734387,1756723850807,-480.0,0.00013972,2]
[382734389,1756723850816,-480.0,0.00013972,2]
[382734391,1756723850825,-480.0,0.00013972,2]
[382734393,1756723850834,-480.0,0.00013972,2]
[382734394,1756723850843,-497.95,0.00013972,2]
[382734396,1756723850852,-480.0,0.00013972,2]
[382734398,1756723850863,-442.64360987,0.00013972,2]
[382734399,1756723850872,-480.0,0.00013972,2]
[382734401,1756723850881,-480.0,0.00013972,2]
[382734403,1756723850890,-480.0,0.00013972,2]
[382734405,1756723850899,-480.0,0.00013972,2]
[382734407,1756723850909,-480.0,0.00013972,2]
[382734409,1756723850919,-151.0,0.00013972,2]
[382734410,1756723850928,-480.0,0.00013972,2]
[382734412,1756723850937,-480.0,0.00013972,2]
[382734414,1756723850946,-3368.32,0.00013972,2]
[382734416,1756723850955,-151.0,0.00013972,2]
[382734417,1756723850964,-480.0,0.00013972,2]
[382734419,1756723850974,-480.0,0.00013972,2]
[382734421,1756723850984,-925.57,0.00013972,2]
[382734423,1756723850993,-500.0,0.00013972,2]
[382734425,1756723851002,-151.0,0.00014,2]
[382734427,1756723851011,-3000.0,0.0001404,2]
[382734428,1756723851020,-459.85,0.00014072,2]
[382734430,1756723851029,-459.85,0.00014086,2]
[382734432,1756723851041,-1048.0,0.00014099,2]
[382734434,1756723851052,-4323.08043642,0.00014115,2]
[382734436,1756723851061,-1048.0,0.00014118,2]
[382734437,1756723851071,-1048.0,0.00014186,2]
[382734439,1756723851080,-1048.0,0.00014197,2]
[382734441,1756723851092,-151.0,0.000142,2]
[382734443,1756723851101,-1048.0,0.00014207,2]
[382734445,1756723851111,-1000.0,0.00014221,2]
[382734446,1756723851122,-1000.0,0.00014221,2]
[382734448,1756723851131,-500.0,0.00014221,2]
[382734450,1756723851140,-364.90184372,0.00014221,2]
[382734452,1756723851149,-877.36759086,0.00014221,2]
[382734454,1756723851159,-1000.0,0.00014221,2]
[382734455,1756723851168,-1000.0,0.00014221,2]
[382734457,1756723851177,-214.91044673,0.00014221,2]
[382734459,1756723851189,-164.89562748,0.00014221,2]
[382734461,1756723851198,-1000.0,0.00014221,2]
[382734463,1756723851208,-501.46562406,0.00014221,2]
[382734465,1756723851218,-1000.0,0.00014221,2]
[382734466,1756723851227,-1000.0,0.00014221,2]
[382734468,1756723851236,-1000.0,0.00014221,2]
[382734470,1756723851245,-1000.0,0.00014221,2]
[382734472,1756723851255,-1000.0,0.00014221,2]
[382734474,1756723851264,-1000.0,0.00014221,2]
[382734476,1756723851273,-1000.0,0.00014221,2]
[382734477,1756723851283,-1000.0,0.00014221,2]
[382734479,1756723851292,-1000.0,0.00014221,2]
[382734481,1756723851301,-151.0,0.00014221,2]
[382734483,1756723851311,-151.0,0.00014221,2]
[382734485,1756723851320,-250.596,0.00014227,2]
[382734487,1756723851329,-278.35488646,0.00014229,2]
[382734488,1756723851338,-209.40437684,0.00014238,2]
[382734490,1756723851347,-1017.0,0.00014238,2]
[382734492,1756723851356,-245.0,0.00014238,2]
[382734494,1756723851367,-500.0,0.00014238,2]
[382734496,1756723851377,-151.0,0.00014238,2]
[382734498,1756723851386,-480.0,0.00014246,2]
[382734499,1756723851395,-480.0,0.00014246,2]
[382734501,1756723851405,-674.59906841,0.00014246,2]
[382734503,1756723851414,-2698.39627366,0.00014246,2]
[382734505,1756723851423,-400.0,0.00014246,2]
[382734506,1756723851432,-490.03,0.00014246,2]
[382734507,1756723851441,-480.0,0.00014246,2]
[382734509,1756723851450,-480.0,0.00014246,2]
[382734511,1756723851459,-480.0,0.00014246,2]
[382734513,1756723851468,-480.0,0.00014246,2]
[382734515,1756723851477,-480.0,0.00014246,2]
[382734516,1756723851486,-480.0,0.00014246,2]
[382734518,1756723851495,-561.55916321,0.00014246,2]
[382734520,1756723851504,-448.31201747,0.00014246,2]
[382734522,1756723851513,-2246.23665282,0.00014246,2]
[382734524,1756723851523,-5048.97843638,0.00014246,2]
[382734525,1756723851531,-480.0,0.00014246,2]
[382734527,1756723851540,-480.0,0.00014246,2]
[382734529,1756723851549,-480.0,0.00014246,2]
[382734531,1756723851558,-480.0,0.00014246,2]
[382734533,1756723851567,-480.0,0.00014246,2]
[382734534,1756723851576,-480.0,0.00014246,2]
[382734536,1756723851585,-480.0,0.00014246,2]
[382734538,1756723851594,-480.0,0.00014246,2]
[382734540,1756723851603,-480.0,0.00014246,2]
[382734542,1756723851612,-480.0,0.00014246,2]
[382734543,1756723851621,-480.0,0.00014246,2]
[382734545,1756723851630,-480.0,0.00014246,2]
[382734547,1756723851639,-480.0,0.00014246,2]
[382734549,1756723851648,-559.85,0.00014246,2]
[382734551,1756723851659,-978.42,0.00014246,2]
[382734553,1756723851668,-502.39,0.00014246,2]
[382734554,1756723851678,-888.81,0.00014246,2]
[382734556,1756723851687,-6065.32022411,0.00014246,2]
[382734558,1756723851696,-266.28233874,0.00014246,2]
[382734580,1756723851926,-500.0,0.0001369,2]
[382734582,1756723851936,-481.0366567,0.00013698,2]
[382734584,1756723851945,-480.0,0.00013972,2]
[382734585,1756723851955,-213.71766126,0.00014246,2]
[382734587,1756723851964,-480.0,0.00014246,2]
[382734589,1756723851972,-403.2617595,0.00014246,2]
[382734591,1756723851981,-480.0,0.00014246,2]
[382734593,1756723851990,-436.02557416,0.00014246,2]
[382734595,1756723852007,-480.0,0.00013972,2]
[382734597,1756723852016,-43.97442584,0.00014246,2]
[382734599,1756723852026,-480.0,0.00014246,2]
[382734601,1756723852035,-251.02172677,0.00014246,2]
[382734603,1756723852050,-480.0,0.00014246,2]
[382734604,1756723852059,-711.98,0.00014246,2]
[382734606,1756723852068,-480.0,0.00014246,2]
[382734608,1756723852077,-480.0,0.00014246,2]
[382734610,1756723852086,-760.28,0.00014246,2]
[382734612,1756723852095,-480.0,0.00014246,2]
[382734613,1756723852104,-378.84334787,0.00014246,2]
[382734615,1756723852116,-848.72,0.00014246,2]
[382734617,1756723852125,-480.0,0.00014246,2]
[382734619,1756723852135,-486.19925006,0.00014246,2]
[382734621,1756723852144,-480.0,0.00014246,2]
[382734623,1756723852153,-168.60395122,0.00014246,2]
[382734625,1756723852165,-311.39604878,0.00014246,2]